bitfinex/quotes_ETHUSD_20250815
["timestamp","ask_amount","ask_price","bid_price","bid_amount"]
[1755232961150,13.84187867,4641.2,4641.1,0.001]
[1755232962526,2.15466161,4641.1,4640.0,0.001]
[1755232962725,15.69130011,4640.5,4640.0,0.001]
[1755232963039,25.87379878,4640.5,4640.0,0.001]
[1755232963253,27.36408225,4640.5,4640.0,0.001]
[1755232963558,27.47208225,4640.5,4640.0,0.001]
[1755232964060,3.9109318,4640.5,4640.0,0.001]
[1755232964257,7.2089318,4640.5,4640.0,0.001]
[1755232965248,14.09196319,4640.5,4640.0,0.001]
[1755232966332,13.6300688,4640.5,4640.0,0.001]
[1755232966541,7.2089318,4640.5,4640.0,0.001]
[1755232966739,7.2952978,4640.5,4640.0,0.001]
[1755232967567,2.15512596,4640.1,4640.0,0.001]
[1755232967742,19.12442494,4640.1,4640.0,0.001]
[1755232967946,26.40962287,4640.1,4640.0,0.001]
[1755232969068,26.49599787,4640.1,4640.0,0.001]
[1755232972536,20.07486087,4640.1,4640.0,0.001]
[1755232972737,27.09528134,4640.1,4640.0,0.001]
[1755232973338,2.15545113,4639.4,4638.9,0.001]
[1755232973643,19.12575417,4639.4,4638.9,0.001]
[1755232973846,26.46104804,4639.4,4638.9,0.001]
[1755232974047,2.15563699,4639.0,4638.9,0.001]
[1755232974375,12.33383967,4639.0,4638.9,0.001]
[1755232974576,12.87486561,4639.0,4638.9,0.001]
[1755232974869,14.46400761,4639.0,4638.9,0.001]
[1755232977958,16.45572433,4639.0,4638.9,0.001]
[1755232980274,12.21562433,4639.0,4638.9,0.001]
[1755232980854,14.86658233,4639.0,4638.9,0.001]
[1755232981040,15.39837633,4639.0,4638.9,0.001]
[1755232981468,15.89407633,4639.0,4638.9,0.001]
[1755232982349,16.47368128,4639.0,4638.9,0.001]
[1755232983379,15.89407633,4639.0,4638.9,0.001]
[1755232984392,16.66842705,4639.0,4638.9,0.001]
[1755232984569,14.95297633,4639.0,4638.9,0.001]
[1755232985386,15.72732705,4639.0,4638.9,0.001]
[1755232985582,12.42832705,4639.0,4638.9,0.001]
[1755232985782,15.72732705,4639.0,4638.9,0.001]
[1755232985988,15.39837633,4639.0,4638.9,0.001]
[1755232986366,14.95297633,4639.0,4638.9,0.001]
[1755232987067,2.15590161,4638.5,4638.4,0.001]
[1755232987266,0.4599714,4638.5,4638.4,0.001]
[1755232987462,3.7589714,4638.5,4638.4,0.001]
[1755232990194,12.80832611,4638.5,4638.4,0.001]
[1755232990382,13.38507775,4638.5,4638.4,0.001]
[1755232990576,12.88937775,4638.5,4638.4,0.001]
[1755232991181,12.44397775,4638.5,4638.4,0.001]
[1755232991608,13.60182881,4638.5,4638.4,0.001]
[1755232991979,12.44397775,4638.5,4638.4,0.001]
[1755232992313,13.60182881,4638.5,4638.4,0.001]
[1755232992477,13.58599979,4638.5,4638.4,0.001]
[1755232992908,2.15619243,4637.9,4637.5,10.0]
[1755232993204,0.57864236,4637.6,4637.5,10.0]
[1755232993405,4.33761376,4637.6,4637.4,0.001]
[1755232993610,0.4599714,4637.5,4637.4,0.001]
[1755232994373,3.7589714,4637.5,4637.4,0.001]
[1755232995611,4.33761376,4637.5,4637.4,0.001]
[1755232996289,3.7589714,4637.5,4637.4,0.001]
[1755232998691,4.55744872,4637.5,4637.4,0.001]
[1755232998891,4.53049455,4637.5,4637.4,0.001]
[1755232999683,3.7589714,4637.5,4637.4,0.001]
[1755233000583,0.4599714,4637.5,4637.4,0.001]
[1755233000819,3.7589714,4637.5,4637.4,0.001]
[1755233002102,0.4599714,4637.5,4637.4,0.001]
[1755233002419,0.4599714,4637.5,4637.4,0.1054]
[1755233003121,0.4599714,4637.5,4637.4,0.001]
[1755233003423,0.4599714,4637.5,4637.4,10.001]
[1755233003629,0.4599714,4637.5,4637.4,10.1054]
[1755233003914,0.4599714,4637.5,4637.4,11.23798204]
[1755233004117,1.04021376,4637.5,4637.4,14.15676277]
[1755233004285,0.4599714,4637.5,4637.4,14.15676277]
[1755233004616,0.4599714,4637.5,4637.4,11.34598204]
[1755233004836,1.3800714,4637.5,4637.4,10.109]
[1755233005000,0.4599714,4637.5,4637.4,10.109]
[1755233005892,0.66146185,4637.5,4637.4,10.109]
[1755233006320,3.96046185,4637.5,4637.4,0.109]
[1755233007101,4.43046185,4637.5,4637.4,0.001]
[1755233008032,4.88056185,4637.5,4637.4,0.001]
[1755233008401,15.00364964,4637.5,4637.4,0.001]
[1755233008746,2.15638073,4637.4,4637.3,0.001]
[1755233008923,2.15652023,4637.1,4637.0,0.001]
[1755233009123,6.02349163,4637.1,4637.0,0.001]
[1755233009325,7.58562178,4637.1,4637.0,0.001]
[1755233010621,8.35776066,4637.1,4637.0,0.001]
[1755233010820,7.58562178,4637.1,4637.0,0.001]
[1755233011120,5.0587627,4637.1,4637.0,0.001]
[1755233011331,8.15627225,4637.1,4637.0,0.001]
[1755233011626,7.38413133,4637.1,4637.0,0.001]
[1755233011990,4.08513133,4637.1,4637.0,1e-08]
[1755233012294,14.03321674,4637.1,4637.0,1e-08]
[1755233012494,14.77765756,4637.1,4637.0,1e-08]
[1755233012928,17.00617029,4637.1,4637.0,1e-08]
[1755233013125,2.15735766,4635.3,4635.2,10.0]
[1755233013397,2.15754385,4634.9,4634.8,0.108]
[1755233013631,5.45654385,4634.9,4634.8,0.108]
[1755233014129,5.45654385,4634.9,4634.4,10.0]
[1755233014308,0.02696988,4634.8,4634.4,0.108]
[1755233014505,3.299,4634.7,4634.4,0.108]
[1755233016052,3.299,4634.7,4634.1,10.0]
[1755233016252,0.108,4634.6,4634.1,10.0]
[1755233016428,3.299,4634.5,4634.0,0.108]
[1755233018422,3.299,4634.5,4634.2,10.0]
[1755233019355,3.299,4634.5,4634.0,10.108]
[1755233019557,3.299,4634.5,4629.5,1.04187298]
[1755233019558,29.05397365,4634.3,4632.1,0.4863]
[1755233019762,2.15798768,4634.0,4632.1,0.4863]
[1755233019974,3.0,4633.8,4632.2,0.44967103]
[1755233020192,3.0,4633.6,4632.5,2.1586605]
[1755233020467,3.421,4633.5,4632.8,2.26651891]
[1755233020764,3.314,4633.4,4632.9,0.92]
[1755233020976,3.314,4633.4,4632.9,0.4337]
[1755233021132,3.314,4633.3,4633.0,0.92]
[1755233021333,3.314,4633.2,4633.1,0.92]
[1755233021683,2.15782651,4634.3,4633.3,2.1582889]
[1755233021684,3.0,4634.3,4633.3,2.1582889]
[1755233021978,0.108,4634.1,4633.4,1.028]
[1755233022132,0.108,4634.1,4633.4,0.5417]
[1755233022332,0.108,4634.1,4633.5,0.4863]
[1755233022583,3.314,4634.0,4633.7,2.1580975]
[1755233022999,3.314,4634.0,4633.8,0.92]
[1755233023201,3.314,4634.0,4633.5,2.15815014]
[1755233023482,3.314,4634.0,4633.5,0.4424451]
[1755233023689,3.314,4634.0,4633.6,2.15814917]
[1755233023901,0.108,4634.3,4633.5,0.55]
[1755233024071,3.314,4634.2,4633.8,2.15805602]
[1755233024392,3.314,4634.2,4633.9,0.108]
[1755233024979,0.02697395,4634.1,4633.5,2.15819]
[1755233025153,3.314,4634.2,4633.6,0.108]
[1755233025355,0.108,4634.3,4633.7,2.64439512]
[1755233025581,3.314,4634.2,4633.9,0.108]
[1755233025769,3.314,4634.2,4634.0,0.01595663]
[1755233025966,3.314,4634.2,4634.1,0.4863]
[1755233027574,3.313,4634.2,4633.9,0.108]
[1755233027782,3.313,4634.1,4634.0,0.4863]
[1755233028294,3.313,4634.1,4633.9,0.108]
[1755233028659,3.313,4634.1,4633.3,2.15827724]
[1755233028859,3.891,4634.1,4633.5,0.108]
[1755233029103,3.891,4634.1,4632.8,0.4863]
[1755233029104,0.47,4634.0,4632.8,0.4863]
[1755233029258,0.108,4633.7,4633.1,0.108]
[1755233029461,0.108,4633.7,4632.4,2.15867571]
[1755233029462,0.108,4633.4,4632.8,0.108]
[1755233029691,3.315,4633.3,4632.8,0.108]
[1755233030117,0.47,4633.2,4632.8,0.108]
[1755233030419,5.47328981,4633.3,4632.4,0.4863]
[1755233030420,0.49697977,4633.1,4632.4,0.4863]
[1755233030719,0.47,4633.1,4632.5,0.108]
[1755233032589,0.108,4633.4,4632.6,0.55]
[1755233032788,3.314,4633.3,4632.8,0.108]
[1755233033013,3.315,4633.2,4633.1,2.15838207]
[1755233033215,0.55,4634.4,4633.2,0.55]
[1755233033380,0.108,4634.1,4633.4,0.108]
[1755233034687,3.315,4634.0,4633.4,0.108]
[1755233035417,0.108,4634.1,4633.4,0.108]
[1755233035793,3.314,4634.0,4633.4,0.108]
[1755233036389,3.314,4634.0,4632.5,4.25]
[1755233036390,2.15809415,4633.8,4632.7,2.27299414]
[1755233036684,0.108,4633.6,4632.9,0.108]
[1755233036899,3.80077744,4633.5,4632.9,0.108]
[1755233037299,6.3931972,4633.5,4632.9,0.108]
[1755233037500,3.7738,4633.5,4632.9,0.108]
[1755233037911,4.23499423,4633.5,4633.3,0.001]
[1755233038107,3.77619423,4633.5,4633.3,0.001]
[1755233038428,0.4588,4633.4,4633.3,0.001]
[1755233039106,3.314,4633.4,4633.3,0.001]
[1755233039308,3.77566613,4633.4,4633.3,0.001]
[1755233039500,3.314,4633.4,4633.3,0.001]
[1755233039699,3.77566613,4633.4,4633.3,0.001]
[1755233039929,3.314,4633.4,4633.3,0.001]
[1755233040227,4.23446613,4633.4,4633.3,0.001]
[1755233040420,4.54364637,4633.4,4633.3,0.001]
[1755233040822,0.46166613,4633.4,4633.3,0.001]
[1755233041000,3.77466613,4633.4,4633.3,0.001]
[1755233041627,6.39170845,4633.4,4633.3,0.001]
[1755233042334,6.84820845,4633.4,4633.3,0.001]
[1755233042707,7.61892258,4633.4,4633.3,0.001]
[1755233043101,2.15834798,4633.2,4632.3,0.001]
[1755233043405,0.57807449,4632.9,4632.3,0.001]
[1755233043625,0.46166613,4632.8,4632.4,0.55]
[1755233043835,0.46166613,4632.7,4632.4,0.4424]
[1755233044136,0.46166613,4632.6,4632.5,0.4861]
[1755233046819,0.46166613,4632.6,4632.3,0.551]
[1755233047020,2.15870822,4632.4,4632.3,0.001]
[1755233047243,2.62037435,4632.4,4632.3,0.001]
[1755233047446,0.92046613,4632.4,4632.3,0.001]
[1755233047750,1.08352646,4632.4,4632.3,0.001]
[1755233047917,0.62472646,4632.4,4632.3,0.001]
[1755233048112,0.46166613,4632.4,4632.3,0.4871]
[1755233048313,3.77966613,4632.4,4632.3,0.001]
[1755233048629,4.23846613,4632.4,4632.3,0.001]
[1755233048947,6.39717435,4632.4,4632.3,0.001]
[1755233049114,7.99726996,4632.4,4632.3,0.001]
[1755233049320,14.41840696,4632.4,4632.3,0.001]
[1755233050538,13.50410696,4632.4,4632.3,0.001]
[1755233050721,11.34539874,4632.4,4632.3,0.001]
[1755233050918,11.4143707,4632.4,4632.3,0.001]
[1755233051122,13.96390696,4632.4,4632.3,0.001]
[1755233051649,14.42040696,4632.4,4632.3,0.001]
[1755233053019,14.52840696,4632.4,4632.3,0.001]
[1755233054356,15.68452012,4632.4,4632.3,0.001]
[1755233054530,14.52840696,4632.4,4632.3,0.001]
[1755233054727,14.72893526,4632.4,4632.3,0.001]
[1755233054948,5.15875483,4632.3,4630.5,0.4861]
[1755233055156,2.15939637,4631.0,4630.5,0.4861]
[1755233055351,3.80765872,4630.9,4630.5,0.4861]
[1755233055657,2.15950072,4630.7,4630.2,0.4861]
[1755233055959,0.46166613,4630.6,4630.2,0.4861]
[1755233056168,3.319,4630.5,4630.3,0.94449933]
[1755233056351,0.108,4631.0,4630.4,2.15964063]
[1755233056658,3.78066613,4630.9,4630.5,0.4861]
[1755233056955,3.319,4630.8,4630.6,0.9285]
[1755233057159,0.108,4631.0,4630.7,0.9285]
[1755233057356,0.108,4631.0,4630.5,2.15958647]
[1755233057357,3.319,4630.9,4630.5,2.15958647]
[1755233057570,0.108,4631.0,4630.8,0.4861]
[1755233057765,3.319,4630.9,4630.5,2.60198647]
[1755233057973,0.46166613,4631.1,4630.6,0.45839583]
[1755233058258,3.78066613,4631.0,4630.7,1.0365]
[1755233058438,3.319,4630.9,4630.8,0.4424]
[1755233058639,3.319,4630.9,4630.8,3.08791253]
[1755233058854,3.319,4630.9,4630.8,0.9285]
[1755233059074,3.319,4630.9,4630.8,0.4861]
[1755233059426,0.46166613,4631.1,4630.8,0.4861]
[1755233059742,3.319,4631.0,4630.9,0.4861]
[1755233059936,3.318,4631.0,4630.7,0.108]
[1755233060137,3.318,4631.0,4630.7,0.5941]
[1755233060660,3.318,4631.0,4630.3,0.4861]
[1755233060832,3.7768,4631.0,4630.5,0.108]
[1755233061035,3.318,4631.0,4630.5,0.108]
[1755233061243,3.318,4631.0,4630.6,0.4861]
[1755233061963,3.318,4631.0,4630.5,0.108]
[1755233062131,2.15945024,4630.9,4629.9,2.15983071]
[1755233062464,3.317,4630.8,4630.1,0.55]
[1755233062636,3.317,4630.7,4630.5,2.15954778]
[1755233062843,3.319,4630.6,4630.5,2.59734778]
[1755233063044,0.46183656,4631.3,4630.5,2.59734778]
[1755233063239,0.108,4631.2,4630.5,0.4378]
[1755233063558,0.108,4631.2,4630.6,0.4592]
[1755233063766,3.319,4631.1,4630.6,0.4592]
[1755233064473,0.108,4631.2,4630.7,0.4592]
[1755233064659,3.319,4631.0,4630.8,0.4592]
[1755233065188,3.319,4631.0,4630.3,0.108]
[1755233065360,3.7556,4631.0,4630.4,0.55]
[1755233066275,3.319,4631.0,4630.4,2.70963463]
[1755233066953,0.108,4631.2,4630.4,2.70963463]
[1755233067143,3.317,4631.1,4630.4,2.70963463]
[1755233067978,0.108,4631.2,4630.5,2.15959113]
[1755233068276,3.316,4631.1,4630.5,0.4592]
[1755233068486,3.316,4631.1,4630.5,2.61878537]
[1755233069583,3.315,4631.0,4630.5,2.61878537]
[1755233069779,3.315,4631.0,4630.6,0.4592]
[1755233069981,0.108,4631.2,4630.4,2.7096321]
[1755233070190,3.315,4630.9,4630.5,0.4592]
[1755233070500,3.315,4630.9,4630.6,0.4592]
[1755233070700,3.315,4630.8,4630.6,0.4592]
[1755233070997,3.315,4630.7,4630.4,2.70962857]
[1755233071435,0.108,4631.2,4630.4,0.55]
[1755233071560,3.315,4631.1,4630.6,2.81754735]
[1755233071879,3.315,4631.1,4630.7,0.4592]
[1755233072179,3.314,4631.0,4630.8,0.4592]
[1755233073180,3.314,4630.9,4630.8,0.4592]
[1755233073749,3.314,4630.9,4630.6,0.658]
[1755233074185,3.7506,4630.9,4630.6,0.658]
[1755233074346,3.314,4630.9,4630.6,0.658]
[1755233074751,3.7506,4630.9,4630.6,0.658]
[1755233074982,3.7506,4630.9,4630.1,4.25]
[1755233075207,3.8586,4630.9,4630.2,0.108]
[1755233075388,3.422,4630.9,4630.2,0.108]
[1755233075684,2.15954566,4630.7,4630.1,4.25]
[1755233075863,0.108,4630.5,4630.1,4.25]
[1755233076059,3.315,4630.4,4630.2,0.4592]
[1755233076267,3.315,4630.3,4630.1,4.358]
[1755233076676,3.315,4630.2,4630.1,4.358]
[1755233077088,3.315,4630.2,4630.1,4.8172]
[1755233077982,3.315,4630.2,4630.1,0.108]
[1755233078987,5.91133392,4630.2,4629.7,0.5718868]
[1755233079204,5.91133392,4630.2,4629.7,0.2206868]
[1755233079205,3.315,4630.2,4629.7,0.2206868]
[1755233079367,0.46359725,4630.1,4629.4,0.001]
[1755233079566,2.15988148,4629.9,4629.4,0.001]
[1755233079898,0.4366,4630.7,4629.5,0.4592]
[1755233080215,3.316,4630.6,4629.8,0.55]
[1755233080369,3.316,4630.5,4630.1,0.55]
[1755233080564,3.316,4630.4,4630.3,0.55]
[1755233080766,2.15932009,4631.1,4630.3,3.16888727]
[1755233081060,3.316,4631.0,4630.3,1.0092]
[1755233081377,5.91196226,4631.0,4630.3,1.0092]
[1755233081884,2.59596226,4631.0,4630.3,1.0092]
[1755233082086,3.316,4630.9,4630.3,1.0092]
[1755233082785,0.4366,4631.0,4630.3,1.0092]
[1755233082992,3.316,4630.8,4630.3,1.0092]
[1755233083191,0.4366,4630.7,4629.9,0.4592]
[1755233083492,3.315,4630.6,4630.0,0.55]
[1755233083800,3.315,4630.5,4630.2,0.55]
[1755233083999,3.315,4630.5,4630.2,2.70972742]
[1755233084196,3.315,4630.4,4630.3,0.4592]
[1755233084363,0.73443594,4631.0,4630.3,0.4592]
[1755233084568,3.315,4630.9,4630.7,0.55]
[1755233084768,3.315,4630.9,4630.3,2.15968349]
[1755233085074,3.315,4630.9,4630.4,0.55]
[1755233085395,0.4366,4630.8,4629.8,0.4592]
[1755233085601,0.4366,4630.8,4630.1,0.55]
[1755233085797,2.15955827,4630.6,4630.1,0.55]
[1755233085978,3.7516,4630.5,4629.9,0.55]
[1755233086173,0.4366,4630.4,4630.3,0.001]
[1755233087401,3.7516,4630.4,4630.3,0.001]
[1755233088111,0.4366,4630.4,4630.3,0.001]
[1755233088408,3.7516,4630.4,4630.3,0.001]
[1755233088611,6.50506013,4630.4,4630.3,0.001]
[1755233088984,6.50406013,4630.4,4630.3,0.001]
[1755233089475,4.3444195,4630.4,4630.3,0.001]
[1755233089678,1.0304195,4630.4,4630.3,0.001]
[1755233089873,3.7506,4630.4,4630.3,0.001]
[1755233090813,3.7516,4630.4,4630.3,0.001]
[1755233091014,3.315,4630.4,4630.3,0.001]
[1755233091692,3.313,4630.4,4630.3,0.001]
[1755233092613,3.753,4630.4,4630.3,0.001]
[1755233093410,3.313,4630.4,4630.3,0.001]
[1755233094101,5.91264063,4630.4,4630.3,0.001]
[1755233094280,6.514696,4630.4,4630.3,0.001]
[1755233095594,4.35505537,4630.4,4630.3,0.001]
[1755233095915,3.311,4630.4,4630.3,0.001]
[1755233096424,3.751,4630.4,4630.3,0.001]
[1755233097183,3.312,4630.4,4630.3,0.001]
[1755233097487,3.311,4630.4,4630.3,0.001]
[1755233097906,5.91064063,4630.4,4630.3,0.001]
[1755233098887,3.751,4630.4,4630.3,0.001]
[1755233099111,5.91064063,4630.4,4630.3,0.001]
[1755233099887,6.728461,4630.4,4630.3,0.001]
[1755233100824,6.287461,4630.4,4630.3,0.001]
[1755233100977,6.727461,4630.4,4630.3,0.001]
[1755233101381,7.65310524,4630.4,4630.3,0.001]
[1755233102016,14.07424224,4630.4,4630.3,0.001]
[1755233102517,14.65456278,4630.4,4630.3,0.001]
[1755233103196,8.23342578,4630.4,4630.3,0.001]
[1755233103396,14.07424224,4630.4,4630.3,0.001]
[1755233104094,13.61234224,4630.4,4630.3,0.001]
[1755233104295,10.30234224,4630.4,4630.3,0.001]
[1755233104508,13.61134224,4630.4,4630.3,0.001]
[1755233104708,10.30234224,4630.4,4630.3,0.001]
[1755233105032,13.61134224,4630.4,4630.3,0.001]
[1755233105181,9.86234224,4630.4,4630.3,0.001]
[1755233105386,6.395461,4630.4,4630.3,0.001]
[1755233106010,6.835461,4630.4,4630.3,0.001]
[1755233106210,7.29896191,4630.4,4630.3,0.001]
[1755233106723,7.29893219,4630.4,4630.3,0.001]
[1755233107094,6.835461,4630.4,4630.3,0.001]
[1755233108191,7.29896407,4630.4,4630.3,0.001]
[1755233109426,7.76086407,4630.4,4630.3,0.001]
[1755233109617,7.29896407,4630.4,4630.3,0.001]
[1755233109825,7.29796407,4630.4,4630.3,0.001]
[1755233110503,14.18100107,4630.4,4630.3,0.001]
[1755233111425,14.18100107,4630.4,4629.8,0.001]
[1755233111426,12.02136044,4630.4,4629.8,0.001]
[1755233111743,15.8726693,4629.9,4629.8,0.001]
[1755233111914,2.16006048,4629.5,4629.4,0.001]
[1755233112115,12.02619823,4629.5,4629.4,0.001]
[1755233112436,14.29508092,4629.5,4629.4,0.001]
[1755233113303,14.29508092,4629.5,4629.4,1e-08]
[1755233113304,13.83318092,4629.5,4629.4,1e-08]
[1755233113504,13.83318092,4629.5,4627.9,0.1126598]
[1755233113505,2.16076058,4628.0,4627.9,0.1126598]
[1755233113806,2.16090918,4627.7,4627.3,0.4607]
[1755233114004,2.16090918,4627.7,4627.2,0.03801]
[1755233114005,0.108,4627.4,4627.2,0.03801]
[1755233114205,2.26904275,4627.4,4627.2,0.03801]
[1755233114435,12.36023804,4627.3,4627.2,0.03801]
[1755233114647,9.87935237,4627.3,4627.2,0.03801]
[1755233114940,3.48909439,4627.3,4627.2,0.03801]
[1755233115106,3.49009439,4627.3,4627.2,0.49871]
[1755233115444,12.07331884,4627.3,4627.2,0.03801]
[1755233115745,0.108,4627.4,4627.2,0.49871]
[1755233115901,3.328,4627.3,4627.2,0.49871]
[1755233116312,3.6716,4627.3,4627.2,0.49871]
[1755233116541,3.83053489,4627.3,4627.2,0.49871]
[1755233116753,3.48693489,4627.3,4627.2,0.49871]
[1755233117064,2.16088808,4627.8,4627.2,0.49871]
[1755233117065,0.54864329,4628.5,4627.2,0.94931]
[1755233117207,0.54864329,4628.5,4627.2,0.03801]
[1755233117208,13.60479544,4628.1,4627.2,0.03801]
[1755233117411,2.16108745,4627.3,4627.2,0.03801]
[1755233117656,5.65845352,4627.3,4627.2,0.03801]
[1755233117825,6.09845352,4627.3,4627.2,0.03801]
[1755233118009,12.51959052,4627.3,4627.2,0.03801]
[1755233118205,2.16122757,4627.0,4626.9,0.01448449]
[1755233118410,25.55117535,4627.0,4625.2,0.4607]
[1755233118631,25.55117535,4627.0,4623.5,13.71750367]
[1755233118632,2.16145398,4626.6,4623.5,0.11270823]
[1755233118844,2.16202276,4625.3,4624.5,0.4607]
[1755233119153,10.68705526,4626.5,4624.5,0.4607]
[1755233119154,2.16211541,4625.1,4624.5,0.4607]
[1755233119334,3.346,4625.0,4624.6,2.16234917]
[1755233119649,2.16189072,4625.6,4624.7,1.43490718]
[1755233119944,3.346,4625.5,4624.8,0.4607]
[1755233120345,3.786,4625.5,4624.3,0.4607]
[1755233120711,2.1622635,4624.8,4624.3,0.4607]
[1755233120923,3.349,4624.7,4624.3,0.4607]
[1755233121247,3.349,4624.7,4624.4,0.9113]
[1755233121543,0.02702936,4624.6,4623.8,1.0107]
[1755233121851,3.789,4624.7,4623.8,0.4607]
[1755233121852,3.51280145,4624.7,4623.8,0.4607]
[1755233122054,0.16380145,4624.7,4623.8,0.4607]
[1755233122214,2.1619968,4625.4,4623.9,0.453272]
[1755233122557,2.1619968,4625.4,4624.1,0.55]
[1755233122558,6.421137,4625.3,4624.1,0.55]
[1755233122722,0.649755,4626.6,4624.3,0.55]
[1755233123059,0.649755,4626.6,4626.4,2.16149046]
[1755233123216,0.649755,4626.6,4625.8,0.55]
[1755233123413,2.16062826,4628.3,4625.8,0.55]
[1755233123414,2.16066721,4628.2,4626.0,0.55]
[1755233123639,3.8007,4628.3,4627.1,0.55]
[1755233123918,0.55246672,4628.1,4626.7,0.4773]
[1755233124142,6.8848465,4628.0,4625.2,0.4372]
[1755233124326,0.55246672,4628.1,4623.6,29.16791061]
[1755233124327,2.16085396,4627.8,4624.4,2.59961603]
[1755233124525,2.16085396,4627.8,4624.9,2.63949761]
[1755233124526,0.57509245,4627.5,4624.9,2.63949761]
[1755233124731,2.16170824,4626.0,4625.0,2.16216216]
[1755233124925,2.16170824,4626.0,4624.9,0.4773]
[1755233124926,3.61619258,4625.9,4624.9,0.4773]
[1755233125128,3.8097,4625.8,4624.7,2.16229801]
[1755233125333,6.44815993,4625.7,4622.0,29.16791061]
[1755233125530,8.58304018,4625.6,4624.2,2.63983579]
[1755233125733,2.16201874,4625.4,4624.3,0.26398358]
[1755233125930,3.373,4625.3,4624.7,2.16226083]
[1755233126248,3.373,4625.2,4624.8,0.4773]
[1755233126455,3.373,4625.3,4625.1,0.108]
[1755233126818,0.108,4625.7,4625.2,0.4773]
[1755233127020,3.374,4625.6,4625.3,0.93055728]
[1755233127264,0.4367,4626.8,4625.4,0.4773]
[1755233127265,2.16146353,4626.5,4625.4,0.4773]
[1755233127415,0.108,4626.1,4625.5,0.55]
[1755233127621,0.108,4626.3,4625.7,2.16183496]
[1755233127831,0.108,4626.3,4625.8,0.4773]
[1755233128049,0.108,4626.3,4625.6,0.108]
[1755233128050,1.37509245,4627.7,4625.9,0.4773]
[1755233128228,0.108,4626.5,4625.9,0.5853]
[1755233128419,3.374,4626.4,4625.9,0.5853]
[1755233128618,1.2619,4627.7,4626.0,1.0273]
[1755233128825,0.108,4626.8,4626.1,0.108]
[1755233129020,3.373,4626.7,4626.1,0.108]
[1755233129224,3.373,4626.6,4626.1,0.108]
[1755233129447,0.108,4626.8,4626.2,0.4773]
[1755233129756,3.373,4626.5,4626.1,0.108]
[1755233129921,3.7211,4626.5,4625.9,0.108]
[1755233130121,3.481,4626.5,4625.9,0.108]
[1755233130322,2.16155459,4626.3,4625.3,0.55]
[1755233130544,0.93947533,4626.2,4625.5,0.108]
[1755233131068,2.16165334,4626.1,4625.5,0.108]
[1755233131229,2.26983908,4625.7,4625.2,0.4773]
[1755233131429,2.26983908,4625.7,4625.1,0.108]
[1755233131430,3.372,4625.6,4625.1,0.108]
[1755233131646,3.373,4626.3,4625.4,0.55]
[1755233131834,3.373,4626.3,4626.1,0.108]
[1755233132028,3.373,4626.3,4626.1,0.5853]
[1755233132235,3.373,4626.3,4626.1,0.108]
[1755233132534,3.373,4626.3,4625.6,2.71187835]
[1755233132734,2.16136178,4626.8,4625.6,0.55]
[1755233132931,3.63480618,4626.7,4625.8,0.55]
[1755233133236,3.375,4626.6,4625.9,2.63904149]
[1755233133430,0.16021115,4626.9,4625.9,2.63904149]
[1755233133431,0.108,4626.8,4626.1,0.55]
[1755233133659,3.375,4626.7,4626.3,0.658]
[1755233133934,3.375,4626.7,4626.4,0.4773]
[1755233134154,3.374,4626.9,4626.5,0.4773]
[1755233134468,3.374,4626.9,4626.6,0.4773]
[1755233134654,3.374,4626.9,4626.8,0.108]
[1755233134839,3.374,4626.9,4626.8,2.26932099]
[1755233135038,3.374,4626.9,4626.8,0.108]
[1755233135636,0.108,4627.5,4626.8,0.108]
[1755233135836,3.59989533,4627.4,4626.8,0.108]
[1755233136374,0.4597393,4628.4,4626.9,1.0273]
[1755233136532,0.108,4628.7,4628.0,0.55]
[1755233136870,2.16024453,4629.2,4628.0,0.55]
[1755233136871,3.373,4629.2,4628.3,0.55]
[1755233137175,0.4367,4629.1,4628.5,0.108]
[1755233137468,0.4367,4629.1,4628.5,2.26852655]
[1755233137638,0.4367,4629.1,4628.5,0.108]
[1755233137837,0.43778095,4629.0,4628.5,0.108]
[1755233138355,6.88484125,4628.9,4628.5,0.108]
[1755233138556,2.16062053,4628.3,4628.2,0.108]
[1755233138734,6.857837,4628.3,4628.2,0.108]
[1755233138935,8.09353424,4628.3,4628.2,0.108]
[1755233139151,13.63015477,4628.3,4628.2,0.108]
[1755233139351,8.20153424,4628.3,4627.3,0.108]
[1755233139674,2.16085447,4627.8,4627.3,0.108]
[1755233139838,5.56391689,4627.7,4627.3,0.108]
[1755233140040,5.97360371,4627.7,4627.3,0.108]
[1755233140235,0.4367,4627.6,4626.5,0.4773]
[1755233140437,0.108,4627.5,4626.8,0.108]
[1755233140641,0.027013,4627.4,4626.8,0.108]
[1755233140869,2.16112447,4627.3,4626.8,0.108]
[1755233141071,3.375,4627.2,4626.8,0.108]
[1755233141277,3.8117,4627.2,4626.8,0.108]
[1755233141458,3.375,4627.2,4626.8,0.108]
[1755233141770,2.59788995,4627.1,4626.8,0.108]
[1755233142172,0.46371534,4627.0,4626.3,0.001]
[1755233142377,0.4367,4627.0,4626.3,0.001]
[1755233142674,2.16141797,4626.6,4626.3,0.001]
[1755233142971,3.374,4626.5,4626.3,0.001]
[1755233143177,3.8107,4626.5,4626.3,0.001]